bitfinex/quotes_BTCUSD_20250408
["timestamp","ask_amount","ask_price","bid_price","bid_amount"]
[1744103938673,0.3498769,79110.0,79106.0,0.12625864]
[1744103938858,0.34,79110.0,79106.0,0.12625864]
[1744103939059,0.265458,79109.0,79106.0,0.12625864]
[1744103939267,0.265461,79108.0,79106.0,0.12625864]
[1744103939467,0.265461,79108.0,79106.0,0.17632346]
[1744103939869,0.012641,79107.0,79106.0,0.17632346]
[1744103940085,0.012641,79107.0,79106.0,0.12625864]
[1744103940307,0.01264,79110.0,79107.0,0.02363656]
[1744103940530,0.01264,79109.0,79108.0,0.12625864]
[1744103943449,0.01364,79109.0,79108.0,0.12625864]
[1744103945164,0.01364,79109.0,79108.0,0.1434845]
[1744103945570,0.001,79109.0,79108.0,0.12625864]
[1744103946069,0.01364,79109.0,79108.0,0.12625864]
[1744103946301,0.01364,79109.0,79108.0,0.14991673]
[1744103946469,0.35364,79109.0,79108.0,0.14991673]
[1744103946870,0.35264,79109.0,79108.0,0.14991673]
[1744103947369,0.35264,79109.0,79108.0,0.15191673]
[1744103947776,0.35264,79109.0,79108.0,0.15391673]
[1744103948124,0.35264,79109.0,79108.0,0.15191673]
[1744103948463,0.35264,79109.0,79108.0,0.15491673]
[1744103949503,0.252812,79110.0,79108.0,0.1750084]
[1744103949829,0.34,79109.0,79108.0,0.2249084]
[1744103950029,6.382e-05,79113.0,79108.0,0.2249084]
[1744103950030,6.382e-05,79113.0,79112.0,0.314846]
[1744103950337,6.382e-05,79113.0,79112.0,0.45057992]
[1744103950534,6.382e-05,79113.0,79112.0,0.58589182]
[1744103950741,6.382e-05,79113.0,79112.0,0.32044582]
[1744103951080,6.382e-05,79113.0,79112.0,0.19695767]
[1744103951478,6.382e-05,79113.0,79112.0,0.22361576]
[1744103951693,0.00106382,79113.0,79112.0,0.22361576]
[1744103952116,0.00206382,79113.0,79112.0,0.23061576]
[1744103952317,0.01470382,79113.0,79112.0,0.23061576]
[1744103952718,0.01470382,79113.0,79112.0,0.22114048]
[1744103952943,0.35470382,79113.0,79112.0,0.17174048]
[1744103953580,0.89970382,79113.0,79112.0,0.04548184]
[1744103954012,0.89870382,79113.0,79112.0,0.01482375]
[1744103954207,1.02495927,79113.0,79112.0,0.003]
[1744103954476,1.02495927,79113.0,79112.0,0.007]
[1744103954707,1.02795927,79113.0,79112.0,0.007]
[1744103954935,0.012641,79104.0,79103.0,0.02365809]
[1744103955163,0.012641,79104.0,79103.0,0.14991673]
[1744103955361,0.605472,79104.0,79103.0,0.14991673]
[1744103956548,0.605472,79104.0,79103.0,0.12625864]
[1744103957659,0.605472,79104.0,79103.0,0.12825864]
[1744103957865,0.352643,79092.0,79089.0,0.00048972]
[1744103957977,0.012643,79090.0,79089.0,0.00048972]
[1744103958183,0.352643,79090.0,79089.0,0.12625864]
[1744103958390,0.012644,79086.0,79079.0,0.000168]
[1744103958643,0.605533,79086.0,79085.0,0.2383993]
[1744103958830,0.605533,79086.0,79085.0,0.12625864]
[1744103959006,1.017333,79086.0,79085.0,0.12625864]
[1744103959846,1.01739678,79086.0,79085.0,0.12625864]
[1744103960633,1.01739678,79086.0,79085.0,0.12825864]
[1744103961062,1.01739678,79086.0,79085.0,0.12625864]
[1744103961399,1.01939678,79086.0,79085.0,0.12625864]
[1744103967394,1.14565223,79086.0,79085.0,0.12625864]
[1744103968195,1.14565223,79086.0,79079.0,0.000168]
[1744103968196,0.605553,79080.0,79079.0,0.000168]
[1744103968396,0.605553,79080.0,79079.0,0.12642664]
[1744103969194,0.605553,79080.0,79079.0,0.000168]
[1744103969405,1.017353,79080.0,79079.0,0.000168]
[1744103969915,1.14360845,79080.0,79079.0,0.003168]
[1744103970117,1.02979091,79080.0,79079.0,0.004168]
[1744103970902,1.02979091,79080.0,79079.0,0.000168]
[1744103971100,1.02979091,79080.0,79079.0,0.002168]
[1744103972106,0.60558,79072.0,79071.0,0.0001681]
[1744103972340,0.60558,79072.0,79071.0,0.12642674]
[1744103973154,0.60658,79072.0,79071.0,0.13042674]
[1744103973353,0.60658,79072.0,79071.0,0.13342674]
[1744103973859,1.01838,79072.0,79071.0,0.0071681]
[1744103974038,1.01738,79072.0,79071.0,0.0031681]
[1744103974220,1.01738,79072.0,79071.0,0.0001681]
[1744103974422,1.01838,79072.0,79071.0,0.0041681]
[1744103974700,1.01838,79072.0,79071.0,0.0071681]
[1744103982945,1.14463545,79072.0,79071.0,0.0071681]
[1744103983208,1.01838,79072.0,79071.0,0.0071681]
[1744103983867,1.01738,79072.0,79071.0,0.0001681]
[1744103984086,1.01738,79072.0,79071.0,0.0021681]
[1744103984334,1.01738,79072.0,79071.0,0.0051681]
[1744103984539,1.01738,79072.0,79071.0,0.0021681]
[1744103985239,1.14363545,79072.0,79071.0,0.0001681]
[1744103985688,1.14363545,79072.0,79071.0,0.0021681]
[1744103985924,1.14363545,79072.0,79071.0,0.0031681]
[1744103986139,1.01738,79072.0,79071.0,0.0031681]
[1744103991905,1.01738,79072.0,79071.0,0.0011681]
[1744103992047,1.01738,79072.0,79071.0,0.0031681]
[1744103992652,1.01738,79072.0,79071.0,0.0021681]
[1744104000467,0.4118,79072.0,79071.0,0.17702674]
[1744104000697,0.265562,79078.0,79071.0,0.17702674]
[1744104000913,0.252926,79075.0,79073.0,0.0494]
[1744104001119,0.252926,79075.0,79074.0,0.17485864]
[1744104001329,0.605569,79076.0,79075.0,0.0486]
[1744104001570,0.605569,79076.0,79075.0,0.17485864]
[1744104001571,0.265569,79076.0,79075.0,0.17485864]
[1744104001807,0.605569,79076.0,79075.0,0.17485864]
[1744104003646,0.605569,79076.0,79075.0,0.18185864]
[1744104003871,0.606569,79076.0,79075.0,0.18185864]
[1744104004075,0.606569,79076.0,79075.0,0.20736005]
[1744104005121,0.353646,79076.0,79075.0,0.20736005]
[1744104008646,0.353646,79076.0,79075.0,0.18185864]
[1744104009832,0.341,79076.0,79075.0,0.18185864]
[1744104010160,0.001,79076.0,79075.0,0.18185864]
[1744104010369,0.001,79076.0,79075.0,0.18438758]
[1744104010577,0.001,79076.0,79075.0,0.40641443]
[1744104010903,0.001,79076.0,79075.0,0.51030744]
[1744104011306,0.001,79076.0,79075.0,0.51977924]
[1744104011480,6.378e-05,79086.0,79077.0,0.0985]
[1744104011664,6.378e-05,79086.0,79085.0,0.17615864]
[1744104012877,6.378e-05,79086.0,79085.0,0.17915864]
[1744104013190,6.378e-05,79086.0,79085.0,0.1970745]
[1744104014466,6.378e-05,79086.0,79085.0,0.2010745]
[1744104015085,0.01270778,79086.0,79085.0,0.2010745]
[1744104015787,0.01270778,79086.0,79085.0,0.18315864]
[1744104017327,6.378e-05,79086.0,79085.0,0.18315864]
[1744104017950,6.378e-05,79086.0,79085.0,0.23175864]
[1744104018586,6.378e-05,79086.0,79085.0,0.24440264]
[1744104018787,6.378e-05,79086.0,79085.0,0.24693104]
[1744104018967,6.378e-05,79086.0,79085.0,0.33417605]
[1744104019179,6.378e-05,79086.0,79085.0,0.33164765]
[1744104019570,6.378e-05,79086.0,79085.0,0.32764765]
[1744104019747,0.00806378,79086.0,79085.0,0.3401885]
[1744104020108,0.01264,79109.0,79096.0,0.0499]
[1744104020260,0.01264,79109.0,79097.0,0.18563308]
[1744104020261,0.0099741,79102.0,79097.0,0.18563308]
[1744104020462,0.01264,79108.0,79101.0,0.12625864]
[1744104020732,0.0003362,79110.0,79106.0,0.12625864]
[1744104020866,0.34,79109.0,79107.0,0.0499]
[1744104021070,0.34,79109.0,79108.0,0.14412731]
[1744104021309,0.35264,79109.0,79108.0,0.14412731]
[1744104021486,0.01264,79109.0,79108.0,0.14412731]
[1744104021712,0.35264,79109.0,79108.0,0.14412731]
[1744104022168,0.36504358,79109.0,79108.0,0.14412731]
[1744104024263,0.36504358,79109.0,79108.0,0.14712731]
[1744104028080,0.36504358,79109.0,79108.0,0.12925864]
[1744104031694,0.37696867,79109.0,79108.0,0.12925864]
[1744104033565,0.01192509,79109.0,79108.0,0.12925864]
[1744104033749,0.01192509,79109.0,79108.0,0.22455864]
[1744104033964,0.01192509,79109.0,79108.0,0.22708651]
[1744104034126,0.01192509,79109.0,79108.0,0.29219786]
[1744104034323,0.01192509,79109.0,79108.0,0.28966999]
[1744104034791,0.01192509,79109.0,79108.0,0.28666999]
[1744104034993,0.01192509,79109.0,79108.0,0.29766999]
[1744104035459,0.01192509,79109.0,79108.0,0.29166999]
[1744104035658,0.01192509,79109.0,79108.0,0.55248799]
[1744104035894,0.01192509,79109.0,79108.0,0.29466999]
[1744104036097,0.01292509,79109.0,79108.0,0.31521084]
[1744104036256,0.01292509,79109.0,79108.0,0.32785084]
[1744104036455,0.001,79109.0,79108.0,0.32785084]
[1744104036659,0.001,79109.0,79108.0,0.32928784]
[1744104037006,0.0003362,79110.0,79108.0,0.32928784]
[1744104037007,0.0003362,79110.0,79109.0,0.265455]
[1744104037241,0.0003362,79110.0,79109.0,0.52781701]
[1744104037560,0.0003362,79110.0,79109.0,0.27690286]
[1744104037759,0.0003362,79110.0,79109.0,0.26236201]
[1744104037963,0.0003362,79110.0,79109.0,0.40828201]
[1744104038222,0.0003362,79110.0,79109.0,0.40840838]
[1744104038444,0.0083362,79110.0,79109.0,0.40940838]
[1744104038632,0.0209762,79110.0,79109.0,0.36390838]
[1744104038833,0.3731237,79110.0,79109.0,0.16918838]
[1744104039139,0.7849237,79110.0,79109.0,1e-08]
[1744104039343,0.605553,79080.0,79079.0,0.0455]
[1744104039542,0.265559,79078.0,79076.0,0.0498]
[1744104039777,0.265559,79078.0,79077.0,0.14584345]
[1744104040002,0.605559,79078.0,79077.0,0.12625864]
[1744104040204,0.61835661,79078.0,79077.0,0.12625864]
[1744104040779,0.61835661,79078.0,79077.0,0.12638467]
[1744104041062,0.605559,79078.0,79077.0,0.12638467]
[1744104041464,0.605559,79078.0,79077.0,0.13038467]
[1744104041465,0.63010218,79078.0,79077.0,0.13038467]
[1744104041666,0.63010218,79078.0,79077.0,0.14343995]
[1744104041892,0.63110218,79078.0,79077.0,0.15143995]
[1744104042699,0.65550792,79078.0,79077.0,0.01212603]
[1744104043155,0.60558,79072.0,79071.0,1.3e-07]
[1744104043345,0.605593,79068.0,79067.0,2.3e-07]
[1744104043637,0.605593,79068.0,79067.0,6.401e-05]
[1744104043638,0.62913618,79068.0,79067.0,6.401e-05]
[1744104043846,0.76715946,79068.0,79067.0,6.401e-05]
[1744104044052,0.64090401,79068.0,79067.0,6.401e-05]
[1744104044809,0.63313618,79068.0,79067.0,6.401e-05]
[1744104045021,0.62913618,79068.0,79067.0,6.401e-05]
[1744104045366,0.63613618,79068.0,79067.0,6.401e-05]
[1744104045700,0.62913618,79068.0,79067.0,6.401e-05]
[1744104046123,0.63013618,79068.0,79067.0,6.401e-05]
[1744104046746,0.64178739,79068.0,79067.0,6.401e-05]
[1744104046958,0.64378739,79068.0,79067.0,6.401e-05]
[1744104047386,0.64178739,79068.0,79067.0,6.401e-05]
[1744104047587,0.64578739,79068.0,79067.0,6.401e-05]
[1744104048073,0.64878739,79068.0,79067.0,6.401e-05]
[1744104048631,0.64578739,79068.0,79067.0,6.401e-05]
[1744104048831,0.64978739,79068.0,79067.0,6.401e-05]
[1744104049249,0.30978739,79068.0,79067.0,0.12632265]
[1744104049446,0.02065121,79068.0,79067.0,0.13917173]
[1744104049940,0.009,79068.0,79067.0,0.13917173]
[1744104050328,0.004,79068.0,79067.0,0.13917173]
[1744104050584,0.01372203,79068.0,79067.0,0.13917173]
[1744104050781,0.004,79068.0,79067.0,0.13917173]
[1744104050913,0.012646,79071.0,79067.0,0.13917173]
[1744104051116,0.00974008,79070.0,79068.0,0.12625864]
[1744104051459,0.34,79069.0,79068.0,0.12625864]
[1744104051820,0.34976326,79069.0,79068.0,0.12625864]
[1744104053869,0.34976326,79069.0,79068.0,0.13125864]
[1744104054438,0.34,79069.0,79068.0,0.13125864]
[1744104054639,0.3497697,79069.0,79068.0,0.12625864]
[1744104054956,0.3497697,79069.0,79068.0,0.19294936]
[1744104055358,0.3497697,79069.0,79068.0,0.19194936]
[1744104055538,0.3507697,79069.0,79068.0,0.19294936]
[1744104056749,0.3517697,79069.0,79068.0,0.19994936]
[1744104058849,0.3644167,79069.0,79068.0,0.13425864]
[1744104060815,0.6173597,79069.0,79068.0,0.13425864]
[1744104064863,0.3517697,79069.0,79068.0,0.13425864]
[1744104065117,0.0117697,79069.0,79068.0,0.19590564]
[1744104065325,0.0117697,79069.0,79068.0,0.18325864]
[1744104065525,0.26759,79069.0,79068.0,0.18013204]
[1744104065704,0.27733394,79069.0,79068.0,0.13425864]
[1744104066574,0.01174394,79069.0,79068.0,0.13425864]
[1744104068610,0.002,79069.0,79068.0,0.13425864]
[1744104068811,0.002,79069.0,79068.0,0.20788982]
[1744104069223,0.002,79069.0,79068.0,0.46083582]
[1744104069418,0.01176249,79069.0,79068.0,0.47348282]
[1744104069834,0.002,79069.0,79068.0,0.49746634]
[1744104070043,0.002,79069.0,79068.0,0.59396634]
[1744104070802,0.001,79069.0,79068.0,0.58696634]
[1744104071145,0.001,79069.0,79068.0,0.73444634]
[1744104071598,0.252906,79081.0,79072.0,0.252931]
[1744104071805,0.605551,79081.0,79080.0,0.12625864]
[1744104071962,0.592906,79081.0,79080.0,0.12625864]
[1744104072155,0.605551,79081.0,79080.0,0.12625864]
[1744104072358,0.34,79081.0,79080.0,0.12625864]
[1744104072649,0.0099365,79088.0,79085.0,0.252892]
[1744104072856,0.0099365,79088.0,79087.0,0.12625864]
[1744104072983,0.0099365,79088.0,79087.0,0.25768616]
[1744104073186,0.0003362,79110.0,79087.0,0.25768616]
[1744104073187,0.012641,79107.0,79097.0,0.01454085]
[1744104073390,0.3403364,79101.0,79100.0,0.12625864]
[1744104073638,0.0129784,79101.0,79100.0,0.12625864]
[1744104074578,0.3529784,79101.0,79100.0,0.12625864]
[1744104074909,0.3529784,79101.0,79100.0,1.12849864]
[1744104075126,0.3529784,79101.0,79100.0,1.27593864]
[1744104075336,0.3529784,79101.0,79100.0,1.33694396]
[1744104076085,0.3529784,79101.0,79100.0,1.34094396]
[1744104076695,0.3529784,79101.0,79100.0,1.33794396]
[1744104076894,0.36285856,79101.0,79100.0,1.33994396]
[1744104078454,0.35021656,79101.0,79100.0,1.33994396]
[1744104078633,0.01021656,79101.0,79100.0,1.33994396]
[1744104078856,0.35021656,79101.0,79100.0,1.33994396]
[1744104079053,0.3403364,79101.0,79100.0,1.33994396]
[1744104079522,0.35033276,79101.0,79100.0,1.33994396]
[1744104079903,0.36297476,79101.0,79100.0,1.33994396]
[1744104080122,0.36297476,79101.0,79100.0,1.19250396]
[1744104080321,0.36297476,79101.0,79100.0,1.33994396]
[1744104080693,0.36297476,79101.0,79100.0,1.27893864]
[1744104081281,0.36297476,79101.0,79100.0,1.15268]
[1744104081494,0.36297476,79101.0,79100.0,1.15168]
[1744104081703,0.36297476,79101.0,79100.0,1.14968]
[1744104081916,0.36297476,79101.0,79100.0,1.15068]
[1744104082111,0.36297476,79101.0,79100.0,1.15268]
[1744104082568,0.36297476,79101.0,79100.0,1.15068]
[1744104082963,0.36697476,79101.0,79100.0,1.15068]
[1744104083299,0.36697476,79101.0,79100.0,1.14968]
[1744104083421,0.36697476,79101.0,79100.0,0.304924]
[1744104083422,0.37197476,79101.0,79100.0,0.304924]
[1744104083622,0.605559,79078.0,79077.0,1.00216]
[1744104083822,0.61545061,79078.0,79077.0,1.12841864]
[1744104084668,0.62823946,79078.0,79077.0,1.12841864]
[1744104084870,0.62823946,79078.0,79077.0,1.00216]
[1744104085095,0.62923946,79078.0,79077.0,1.00816]
[1744104085499,0.62923946,79078.0,79077.0,1.23524102]
[1744104085500,0.61645061,79078.0,79077.0,1.23524102]
[1744104085641,0.61745061,79078.0,79077.0,1.24224102]
[1744104085848,0.35189161,79078.0,79077.0,1.50780402]
[1744104086050,0.342,79078.0,79077.0,1.28864102]
[1744104087481,0.3634933,79078.0,79077.0,1.27885864]
[1744104088170,0.3498483,79078.0,79077.0,1.27585864]
[1744104088373,0.3634933,79078.0,79077.0,1.27585864]
[1744104088777,0.3644933,79078.0,79077.0,1.28285864]
[1744104089025,0.3644933,79078.0,79077.0,1.40911409]
[1744104089218,0.3634933,79078.0,79077.0,1.40211409]
[1744104089433,0.3634933,79078.0,79077.0,1.27585864]
[1744104089660,0.3634933,79078.0,79077.0,1.28185864]
[1744104089798,0.3634933,79078.0,79077.0,1.28485864]
[1744104091729,0.3508483,79078.0,79077.0,1.28485864]
[1744104091929,0.0108483,79078.0,79077.0,1.64262164]
[1744104092197,0.0108483,79078.0,79077.0,1.78341794]
[1744104092340,0.001,79078.0,79077.0,1.79286479]
[1744104092963,0.34,79088.0,79084.0,0.265537]
[1744104093270,0.34,79088.0,79087.0,0.12625864]
[1744104093478,0.265515,79092.0,79088.0,0.012644]
[1744104093479,0.0099618,79092.0,79088.0,0.012644]
[1744104093679,0.0099618,79092.0,79091.0,0.18530164]
[1744104093850,0.012642,79098.0,79091.0,0.32041864]
[1744104094084,0.34,79096.0,79093.0,0.12625864]
[1744104094329,0.605501,79096.0,79093.0,0.12625864]
[1744104094469,0.352642,79096.0,79094.0,0.06102264]
[1744104094668,0.34,79096.0,79095.0,0.12625864]
[1744104094868,0.352642,79096.0,79095.0,0.12625864]
[1744104097654,0.352642,79096.0,79095.0,0.27397864]
[1744104097889,0.352642,79096.0,79095.0,0.3060165]
[1744104102377,0.34,79096.0,79095.0,0.3060165]
[1744104102853,0.605499,79096.0,79095.0,0.3060165]
[1744104103899,0.606499,79096.0,79095.0,0.3110165]
[1744104104116,0.605499,79096.0,79095.0,0.3110165]
[1744104104656,0.0224488,79099.0,79095.0,0.27897864]
[1744104104657,0.34,79097.0,79095.0,0.27897864]
[1744104104861,0.34,79097.0,79096.0,0.12625864]
[1744104105303,0.34,79097.0,79096.0,0.37911564]
[1744104105473,0.34,79097.0,79096.0,0.17365864]
[1744104105701,0.34,79100.0,79096.0,0.39328254]
[1744104105903,0.34,79100.0,79099.0,0.12625864]
[1744104106307,0.0003364,79101.0,79100.0,0.252844]
[1744104106589,0.0003364,79101.0,79100.0,0.39174464]
[1744104106902,0.0003364,79101.0,79100.0,0.12625864]
[1744104107048,0.0003364,79101.0,79100.0,0.43594361]
[1744104107430,0.0003364,79101.0,79100.0,0.18309961]
[1744104107881,0.00865652,79101.0,79100.0,0.18309961]
[1744104108091,0.0003364,79101.0,79100.0,0.18809961]
[1744104108464,0.00865652,79101.0,79100.0,0.18809961]
[1744104108664,0.0003364,79101.0,79100.0,0.18809961]
[1744104108869,0.00865652,79101.0,79100.0,0.18809961]
[1744104109121,0.0003364,79101.0,79100.0,0.18809961]
[1744104109486,0.0003364,79101.0,79100.0,0.19209961]
[1744104109691,0.36127182,79101.0,79100.0,0.19209961]
[1744104110370,0.36127182,79101.0,79100.0,0.33981961]
[1744104110924,0.00862982,79101.0,79100.0,0.33981961]
[1744104111269,0.02127182,79101.0,79100.0,0.33981961]
[1744104111445,0.27411282,79101.0,79100.0,0.33981961]
[1744104111648,0.27411282,79101.0,79100.0,0.28297864]
[1744104111847,0.61411282,79101.0,79100.0,0.28297864]
[1744104112416,0.61411282,79101.0,79100.0,0.27897864]
[1744104112611,0.61411282,79101.0,79100.0,0.28297864]
[1744104112864,0.61411282,79101.0,79100.0,0.27797864]
[1744104113039,0.61411282,79101.0,79100.0,0.3087765]
[1744104114408,0.61411282,79101.0,79100.0,0.3057765]
[1744104114582,0.61411282,79101.0,79100.0,0.13025864]
[1744104114744,0.61411282,79101.0,79100.0,0.004]
[1744104114951,0.605489,79099.0,79098.0,0.14772]
[1744104115294,0.61372394,79099.0,79098.0,0.14772]
[1744104116330,0.61372394,79099.0,79098.0,0.27397864]
[1744104116530,0.61372394,79099.0,79098.0,0.3013765]
[1744104116737,0.61372394,79099.0,79098.0,0.3053765]
[1744104117849,0.34823494,79099.0,79098.0,0.3053765]
[1744104118592,0.34823494,79099.0,79098.0,0.31483891]
[1744104118984,0.36087694,79099.0,79098.0,0.31483891]
[1744104120968,0.34823494,79099.0,79098.0,0.32748091]
[1744104121244,0.34823494,79099.0,79098.0,0.31483891]
[1744104122590,0.60108194,79099.0,79098.0,0.31483891]
[1744104122796,0.61372394,79099.0,79098.0,0.31483891]
[1744104122995,0.34823494,79099.0,79098.0,0.31479891]
[1744104126960,0.36087694,79099.0,79098.0,0.31479891]
[1744104127133,0.36087694,79099.0,79098.0,0.16711891]
[1744104127342,0.36087694,79099.0,79098.0,0.28740105]
[1744104127516,0.34823494,79099.0,79098.0,0.28740105]
[1744104128481,0.34823494,79099.0,79098.0,0.28540105]
[1744104128689,0.34823494,79099.0,79098.0,0.28740105]
[1744104128984,0.34823494,79099.0,79098.0,0.29140105]
[1744104129186,0.34823494,79099.0,79098.0,0.4176565]
[1744104129432,0.36087694,79099.0,79098.0,0.29140105]
[1744104129608,0.36087694,79099.0,79098.0,0.14372105]
[1744104129761,0.36087694,79099.0,79098.0,0.29140105]
[1744104130000,0.36087694,79099.0,79098.0,0.28193864]
[1744104130187,0.36087694,79099.0,79098.0,0.27793864]
[1744104130559,0.36087694,79099.0,79098.0,0.40619409]
[1744104130764,0.36087694,79099.0,79098.0,0.40219409]
[1744104130883,0.36087694,79099.0,79098.0,0.40419409]
[1744104131321,0.36087694,79099.0,79098.0,0.40219409]
[1744104132354,0.36087694,79099.0,79098.0,0.40419409]
[1744104136388,0.36087694,79099.0,79098.0,0.27793864]
[1744104136594,0.36087694,79099.0,79098.0,0.13025864]
[1744104136791,0.36087694,79099.0,79098.0,0.27793864]
[1744104136985,0.34823494,79099.0,79098.0,0.27793864]
[1744104137194,0.34823494,79099.0,79098.0,0.38638064]
[1744104137388,0.34823494,79099.0,79098.0,0.38321519]
[1744104137589,0.34823494,79099.0,79098.0,0.50947064]
[1744104137899,0.34823494,79099.0,79098.0,0.50747064]
[1744104138096,0.34823494,79099.0,79098.0,0.51347064]
[1744104138618,0.34823494,79099.0,79098.0,0.51147064]
[1744104138818,0.34,79099.0,79098.0,0.51147064]
[1744104138975,0.341,79099.0,79098.0,0.77032064]
[1744104139176,0.34921578,79099.0,79098.0,0.78296264]
[1744104139375,0.341,79099.0,79098.0,0.78296264]
[1744104140138,0.34922798,79099.0,79098.0,0.78296264]
[1744104142566,0.34922798,79099.0,79098.0,0.51747064]
[1744104143514,0.34922798,79099.0,79098.0,0.47047064]
[1744104144270,0.34903673,79099.0,79098.0,0.47047064]
[1744104144684,0.61452573,79099.0,79098.0,0.42167064]
[1744104145500,0.34903673,79099.0,79098.0,0.42167064]
[1744104145700,0.00922798,79099.0,79098.0,0.43431264]
[1744104145901,0.001,79099.0,79098.0,0.44885349]
[1744104146102,0.001,79099.0,79098.0,0.49475349]
[1744104146427,0.001,79099.0,79098.0,0.6373165]
[1744104146784,0.001,79099.0,79098.0,0.64399762]
[1744104147004,0.001,79099.0,79098.0,0.64999762]
[1744104147397,0.001,79099.0,79098.0,0.64499762]
[1744104147598,0.001,79099.0,79098.0,0.6263165]
[1744104147794,0.001,79099.0,79098.0,0.4796365]
[1744104147996,0.001,79099.0,79098.0,0.6271165]
[1744104148867,0.001,79099.0,79098.0,0.6321165]
[1744104149160,0.0003364,79101.0,79100.0,0.058542]
[1744104149372,0.0003364,79101.0,79100.0,0.24133211]
[1744104149566,0.0003364,79101.0,79100.0,0.25080866]
[1744104150129,0.0003364,79101.0,79100.0,0.25580866]
[1744104150336,0.0003364,79101.0,79100.0,0.25428105]
[1744104150539,0.0003364,79101.0,79100.0,0.3805365]
[1744104151189,0.0003364,79101.0,79100.0,0.3795365]
[1744104151843,0.0063364,79101.0,79100.0,0.3805365]
[1744104153163,0.0063364,79101.0,79100.0,0.34107349]
[1744104154859,0.0063364,79101.0,79100.0,0.38046949]
[1744104155101,0.0063364,79101.0,79100.0,0.80547349]
[1744104155310,0.0063364,79101.0,79100.0,0.84486395]
[1744104155711,0.0003362,79110.0,79109.0,0.270455]
[1744104155913,7.8e-07,79110.0,79109.0,0.91625449]
[1744104156113,0.0003362,79122.0,79111.0,0.320449]
[1744104156315,0.0003362,79122.0,79111.0,0.51490848]
[1744104156584,0.0003362,79122.0,79111.0,0.69116393]
[1744104157156,0.0003362,79122.0,79117.0,0.310829]
[1744104157365,0.0003362,79122.0,79117.0,0.59906849]
[1744104157920,0.0003362,79122.0,79117.0,0.60854504]
[1744104158663,0.0003362,79122.0,79117.0,0.60954504]
[1744104158864,0.0003362,79122.0,79117.0,0.62686941]
[1744104159646,0.0003362,79122.0,79117.0,0.15405956]
[1744104159847,0.2657612,79118.0,79117.0,0.28417519]
[1744104160026,0.2657612,79118.0,79117.0,0.27469864]
[1744104160230,0.61285448,79118.0,79117.0,0.001]
[1744104160470,0.66265448,79118.0,79117.0,0.001]
[1744104160834,0.605455,79109.0,79108.0,0.14744]
[1744104161148,0.34705076,79109.0,79108.0,0.53915664]
[1744104161353,0.34705076,79109.0,79108.0,0.54885464]
[1744104161698,0.34,79109.0,79108.0,0.28339664]
[1744104161897,0.34,79109.0,79108.0,0.3130004]
[1744104162077,0.35965489,79109.0,79108.0,0.3130004]
[1744104162427,0.35965489,79109.0,79108.0,0.3170004]
[1744104162825,0.35965489,79109.0,79108.0,0.28739664]
[1744104163027,0.35965489,79109.0,79108.0,0.27769864]
[1744104163331,0.36065489,79109.0,79108.0,0.28369864]
[1744104163911,0.35965489,79109.0,79108.0,0.27369864]
[1744104164407,0.35965489,79109.0,79108.0,0.27669864]
[1744104164616,0.35965489,79109.0,79108.0,0.27569864]
[1744104164818,0.36165489,79109.0,79108.0,0.27369864]
[1744104165456,0.36165489,79109.0,79108.0,0.3010685]
[1744104165834,0.34901489,79109.0,79108.0,0.31050653]
[1744104166001,0.36165489,79109.0,79108.0,0.31050653]
[1744104166203,0.36265489,79109.0,79108.0,0.31050653]
[1744104166625,0.36165489,79109.0,79108.0,0.31050653]
[1744104166932,0.36165489,79109.0,79108.0,0.31250653]
[1744104167110,0.35965489,79109.0,79108.0,0.31250653]
[1744104167473,0.35965489,79109.0,79108.0,0.31450653]
[1744104168878,0.35965489,79109.0,79108.0,0.28713667]
[1744104170873,0.35965489,79109.0,79108.0,0.28730853]
[1744104177606,0.00701489,79109.0,79108.0,0.55276653]
[1744104177809,0.0224904,79116.0,79109.0,0.01264]
[1744104178009,0.252802,79114.0,79110.0,0.37907064]
[1744104178350,0.61231506,79113.0,79111.0,0.08308595]
[1744104178554,0.34686906,79113.0,79112.0,0.12625864]
[1744104178756,0.34686906,79113.0,79112.0,0.1264305]
[1744104179799,0.00686906,79113.0,79112.0,0.3918765]
[1744104179950,0.61162714,79116.0,79112.0,0.18692437]
[1744104180158,0.0183864,79115.0,79114.0,0.12625864]
[1744104180765,0.0183864,79115.0,79114.0,0.1264305]
[1744104181238,0.0183864,79115.0,79114.0,0.1294305]
[1744104181437,0.6111854,79115.0,79114.0,0.1294305]
[1744104181638,0.3583864,79115.0,79114.0,0.21251645]
[1744104181865,0.0057474,79115.0,79114.0,0.47795445]
[1744104182026,0.0057474,79115.0,79114.0,0.54874027]
[1744104182225,0.0003362,79118.0,79117.0,0.27996985]
[1744104182492,0.0003362,79118.0,79117.0,0.40622849]
[1744104182703,0.0003362,79118.0,79117.0,0.46672236]
[1744104182879,0.0003362,79118.0,79117.0,0.47616733]
[1744104183078,0.00016434,79118.0,79117.0,0.47616733]
[1744104183624,0.00016434,79118.0,79117.0,0.19619748]
[1744104183893,0.00216434,79118.0,79117.0,0.20883648]
[1744104184275,0.00016434,79118.0,79117.0,0.35623648]
[1744104184605,0.00216434,79118.0,79117.0,0.35623648]
[1744104184847,0.00016434,79118.0,79117.0,0.35623648]
[1744104185145,0.00216434,79118.0,79117.0,0.35723648]
[1744104185646,0.00616434,79118.0,79117.0,0.35823648]
[1744104186050,0.00616434,79118.0,79117.0,0.38184093]
[1744104191309,0.00616434,79118.0,79117.0,0.36920193]
[1744104191464,0.01880334,79118.0,79117.0,0.36920193]
[1744104191662,0.02474052,79118.0,79117.0,0.36920193]
[1744104192719,0.01210152,79118.0,79117.0,0.36920193]
[1744104193260,0.02474052,79118.0,79117.0,0.36920193]
[1744104193864,0.01210152,79118.0,79117.0,0.36920193]
[1744104194091,0.01210152,79118.0,79117.0,0.35975696]
[1744104194296,0.02474052,79118.0,79117.0,0.35975696]
[1744104194496,0.27752652,79118.0,79117.0,0.29926309]
[1744104194698,0.01210152,79118.0,79117.0,0.29926309]
[1744104195234,0.02474052,79118.0,79117.0,0.30871339]
[1744104195638,0.02474052,79118.0,79117.0,0.29926309]
[1744104196924,0.02474052,79118.0,79117.0,0.27565864]
[1744104197313,0.02474052,79118.0,79117.0,0.27465864]
[1744104197515,0.36274052,79118.0,79117.0,0.27465864]
[1744104197739,0.36274052,79118.0,79117.0,0.3061245]
[1744104198139,0.35874052,79118.0,79117.0,0.3011245]
[1744104198347,0.35874052,79118.0,79117.0,0.3031245]
[1744104198672,0.35974052,79118.0,79117.0,0.3071245]
[1744104198813,0.35974052,79118.0,79117.0,0.3081245]
[1744104199018,0.35874052,79118.0,79117.0,0.3021245]
[1744104199219,0.35874052,79118.0,79117.0,0.3051245]
[1744104200488,0.34610152,79118.0,79117.0,0.3051245]
[1744104200787,0.00610152,79118.0,79117.0,0.3177635]
[1744104200965,0.00016434,79118.0,79117.0,0.37611845]